bitfinex-derivatives/quotes_SOLF0:USTF0_20240927
["timestamp","ask_amount","ask_price","bid_price","bid_amount"]
[1727441908771,16.83,157.28,157.21,3.1795]
[1727441908973,3.179,157.25,157.21,3.1795]
[1727441909279,16.83,157.26,157.17,1.2677]
[1727441909878,16.83,157.24,157.17,1.2677]
[1727441910069,3.1798,157.21,157.17,1.2677]
[1727441910273,3.1798,157.21,157.17,4.448]
[1727441911173,3.1796,157.22,157.17,1.2677]
[1727441911575,3.1796,157.22,157.19,3.1799]
[1727441911778,16.83,157.26,157.17,18.0977]
[1727441912477,3.1793,157.23,157.17,18.0977]
[1727441912680,16.83,157.26,157.17,18.0977]
[1727441913984,16.83,157.24,157.17,1.2677]
[1727441914276,19.98038462,157.24,157.17,4.448]
[1727441914883,19.98038462,157.24,157.17,1.2677]
[1727441915480,3.1795,157.22,157.19,3.1799]
[1727441916181,3.1796,157.21,157.18,3.1801]
[1727441917483,3.1795,157.22,157.19,3.18]
[1727441918987,3.1796,157.21,157.18,3.1801]
[1727441919680,3.1799,157.2,157.17,4.4481]
[1727441920081,3.1799,157.2,157.18,3.1802]
[1727441920288,3.1796,157.21,157.18,3.1802]
[1727441922384,3.1796,157.21,157.19,3.18]
[1727441922591,3.1795,157.22,157.19,3.18]
[1727441922888,3.1795,157.22,157.17,1.2677]
[1727441922889,16.83,157.25,157.17,1.2677]
[1727441923589,3.1793,157.23,157.17,1.2677]
[1727441923786,6.3061458,157.23,157.17,1.2677]
[1727441924484,3.1793,157.23,157.17,18.0977]
[1727441925084,3.12716389,157.23,157.17,18.0977]
[1727441925286,3.1791,157.24,157.17,18.0977]
[1727441925594,6.42958803,157.24,157.17,18.0977]
[1727441925794,3.1791,157.24,157.17,18.0977]
[1727441925986,6.43785738,157.24,157.19,16.83]
[1727441926186,3.25875738,157.24,157.19,16.83]
[1727441926391,3.25875738,157.24,157.22,16.83]
[1727441926795,3.25875738,157.24,157.23,3.1792]
[1727441926989,3.1785,157.27,157.23,3.1792]
[1727441927396,3.1787,157.26,157.23,3.1792]
[1727441928298,3.1787,157.26,157.22,16.83]
[1727441928299,20.08080608,157.31,157.22,16.83]
[1727441929300,3.1787,157.26,157.23,3.1791]
[1727441931308,20.08080608,157.31,157.23,16.83]
[1727441931601,3.25080608,157.31,157.23,16.83]
[1727441931795,3.1782,157.28,157.25,3.1787]
[1727441932798,75.56,157.33,157.23,16.83]
[1727441933102,75.56,157.33,157.24,1.2901]
[1727441933103,78.77457067,157.33,157.24,1.2901]
[1727441933297,78.77457067,157.33,157.26,3.1786]
[1727441933703,78.77457067,157.33,157.24,2.5713]
[1727441934705,3.1782,157.28,157.25,3.1787]
[1727441934901,16.83,157.34,157.24,2.5713]
[1727441935107,16.83,157.34,157.24,3.9154]
[1727441935296,16.83,157.34,157.28,3.1782]
[1727441935609,19.94559706,157.34,157.28,3.1782]
[1727441936300,3.1777,157.31,157.28,3.1782]
[1727441936504,19.94559706,157.34,157.25,16.83]
[1727441936703,3.1781,157.29,157.25,16.83]
[1727441936907,16.83,157.31,157.24,3.9154]
[1727441937408,3.1783,157.28,157.25,3.1787]
[1727441939508,3.1784,157.27,157.24,5.7502]
[1727441939709,16.83,157.31,157.24,2.5713]
[1727441940314,16.83,157.31,157.21,16.83]
[1727441940315,16.83,157.29,157.21,16.83]
[1727441940911,3.1788,157.26,157.23,3.1791]
[1727441942309,6.34230884,157.27,157.24,3.1789]
[1727441942510,16.83,157.32,157.23,16.83]
[1727441942705,20.00907143,157.32,157.23,16.83]
[1727441943314,3.17907143,157.32,157.23,16.83]
[1727441943515,16.83,157.34,157.24,2.6515]
[1727441943711,16.83,157.34,157.25,16.83]
[1727441943912,16.83,157.34,157.27,3.1782]
[1727441944110,3.1370993,157.34,157.27,16.83]
[1727441944316,83.64381762,157.36,157.27,16.83]
[1727441945408,83.64381762,157.36,157.28,3.1781]
[1727441945816,16.83,157.34,157.25,18.1549]
[1727441946016,3.13586065,157.33,157.25,18.1549]
[1727441946516,3.1777,157.31,157.25,18.1549]
[1727441947918,3.13586065,157.33,157.27,3.1782]
[1727441947919,3.1779,157.3,157.27,3.1782]
[1727441949608,3.1779,157.3,157.25,18.1549]
[1727441949609,3.1777,157.31,157.28,3.1782]
[1727441950317,3.1778,157.3,157.27,3.1783]
[1727441953621,3.178,157.29,157.27,3.1783]
[1727441953820,16.83,157.34,157.27,3.1783]
[1727441954025,19.94837985,157.34,157.27,3.1783]
[1727441954325,3.1778,157.3,157.27,3.1783]
[1727441955312,3.1778,157.3,157.28,3.1782]
[1727441955513,3.1777,157.31,157.25,18.1549]
[1727441956016,3.1778,157.3,157.28,3.1781]
[1727441956626,3.1778,157.3,157.27,3.1783]
[1727441957413,3.1778,157.3,157.28,3.1782]
[1727441958824,3.1777,157.31,157.28,3.1782]
[1727441959417,3.1774,157.32,157.29,3.178]
[1727441960130,6.37823515,157.32,157.29,3.178]
[1727441960426,6.37823515,157.32,157.3,10.75]
[1727441961028,10.75,157.34,157.3,10.75]
[1727441961029,3.1772,157.33,157.31,10.75]
[1727441961227,3.13800502,157.34,157.31,10.75]
[1727441961422,77.56381762,157.36,157.31,10.75]
[1727441961828,10.75,157.35,157.31,10.75]
[1727441962029,3.16979516,157.34,157.31,10.75]
[1727441962229,3.16979516,157.34,157.3,13.9278]
[1727441962532,3.16979516,157.34,157.25,1.3249]
[1727441962533,3.1776,157.31,157.29,10.75]
[1727441963529,10.75,157.32,157.25,1.3249]
[1727441963834,10.75,157.27,157.24,2.6515]
[1727441964529,3.1788,157.26,157.24,2.6515]
[1727441964832,10.75,157.27,157.24,2.6515]
[1727441965020,13.9285,157.27,157.24,2.6515]
[1727441965226,10.75,157.27,157.24,2.6515]
[1727441965534,3.18077692,157.3,157.25,10.75]
[1727441965535,3.1783,157.28,157.25,10.75]
[1727441966427,3.1783,157.28,157.24,2.6515]
[1727441966827,3.1783,157.28,157.25,3.1788]
[1727441967029,3.1781,157.29,157.25,3.1788]
[1727441968529,19.91034162,157.32,157.24,19.4315]
[1727441969130,3.1779,157.3,157.26,3.1785]
[1727441970131,3.178,157.29,157.26,3.1785]
[1727441971826,19.91034162,157.32,157.27,3.1784]
[1727441972425,3.178,157.3,157.27,3.1784]
[1727441972721,19.91034162,157.32,157.24,19.4315]
[1727441972924,3.1781,157.29,157.26,3.1785]
[1727441973335,3.1781,157.29,157.24,2.6515]
[1727441973540,3.1781,157.29,157.25,3.1786]
[1727441974634,3.1781,157.29,157.26,3.1786]
[1727441980537,16.78,157.3,157.24,2.6515]
[1727441981042,3.1784,157.28,157.25,3.1788]
[1727441981235,6.31287471,157.28,157.25,3.1788]
[1727441987445,142.35005694,157.37,157.24,19.4315]
[1727441987638,16.78,157.35,157.24,19.4315]
[1727441987843,3.17389759,157.35,157.26,16.78]
[1727441988141,16.78,157.34,157.25,1.3279]
[1727441988346,10.74,157.3,157.26,10.74]
[1727441989441,13.9179,157.3,157.27,3.1783]
[1727441991637,3.1776,157.31,157.28,3.1782]
[1727441994249,3.1776,157.31,157.27,10.74]
[1727441994549,13.91540171,157.32,157.27,10.74]
[1727441995050,3.1778,157.3,157.27,13.9183]
[1727441995450,13.91540171,157.32,157.27,13.9183]
[1727441996445,13.91540171,157.32,157.27,10.74]
[1727441997449,13.91540171,157.32,157.28,3.1781]
[1727441997450,3.1777,157.31,157.28,3.1781]
[1727442000351,10.74,157.29,157.25,1.3279]
[1727442000557,75.54,157.4,157.28,10.74]
[1727442000755,10.74,157.35,157.3,10.74]
[1727442001258,10.74,157.34,157.28,3.1781]
[1727442001454,10.74,157.3,157.25,1.3279]
[1727442001654,10.74,157.28,157.24,2.6515]
[1727442001959,13.9185,157.27,157.24,2.6515]
[1727442002455,13.9185,157.27,157.24,5.8305]
[1727442002649,13.9185,157.27,157.24,2.6515]
[1727442003050,10.74,157.27,157.24,2.6515]
[1727442003256,13.9182,157.28,157.24,16.5704]
[1727442003458,10.74,157.31,157.27,10.74]
[1727442003759,6.3522,157.39,157.28,10.74]
[1727442003760,10.74,157.33,157.28,10.74]
[1727442003958,3.19710698,157.32,157.28,13.9182]
[1727442004154,6.37470698,157.32,157.28,13.9182]
[1727442004357,3.1776,157.32,157.3,10.74]
[1727442004749,3.1776,157.31,157.3,10.74]
[1727442005150,10.74,157.34,157.3,10.74]
[1727442005463,3.1772,157.33,157.3,10.74]
[1727442005661,13.93933249,157.34,157.3,10.74]
[1727442005958,10.74,157.33,157.28,13.9182]
[1727442006157,10.74,157.32,157.27,10.74]
[1727442006555,10.74,157.32,157.26,10.74]
[1727442006957,13.94464757,157.32,157.26,10.74]
[1727442007161,3.1779,157.3,157.26,13.9185]
[1727442007361,3.1779,157.3,157.27,10.74]
[1727442007561,3.1779,157.3,157.26,3.1784]
[1727442007760,10.74,157.29,157.24,13.3915]
[1727442008570,10.74,157.28,157.24,13.3915]
[1727442008865,3.1785,157.27,157.24,1.3188]
[1727442009866,10.74,157.25,157.2,13.4256]
[1727442010254,13.9189,157.25,157.21,10.74]
[1727442010459,10.74,157.27,157.23,13.9192]
[1727442010962,10.74,157.3,157.25,10.74]
[1727442011160,6.3525,157.38,157.25,10.74]
[1727442011361,13.9182,157.29,157.24,10.74]
[1727442011561,10.74,157.29,157.24,13.9188]
[1727442011963,3.1782,157.28,157.21,6.29345816]
[1727442012166,3.1782,157.28,157.2,2.6856]
[1727442012167,3.1782,157.28,157.25,3.1787]
[1727442012360,3.1782,157.28,157.23,10.74]
[1727442012766,10.74,157.27,157.22,10.74]
[1727442012967,10.74,157.26,157.2,13.4256]
[1727442013867,10.74,157.25,157.2,2.6856]
[1727442014062,10.74,157.22,157.2,2.6856]
[1727442014466,13.9195,157.22,157.2,2.6856]
[1727442014658,10.74,157.21,157.06,35.43289801]
[1727442014860,10.74,157.21,157.15,10.74]
[1727442015059,10.74,157.21,157.16,6.29464497]
[1727442015265,13.9195,157.22,157.16,17.03464497]
[1727442015466,13.9195,157.22,157.16,10.74]
[1727442015668,13.9195,157.22,157.13,7.31013371]
[1727442015669,13.9195,157.22,157.18,10.74]
[1727442015866,3.1793,157.23,157.18,10.74]
[1727442016067,10.74,157.24,157.19,10.74]
[1727442016476,13.9192,157.24,157.2,3.1798]
[1727442016772,13.9192,157.24,157.19,10.74]
[1727442016963,10.74,157.25,157.21,10.74]
[1727442017565,10.74,157.25,157.22,3.1793]
[1727442018072,13.919,157.24,157.19,10.74]
[1727442019574,3.21550235,157.27,157.13,7.31013371]
[1727442019575,10.74,157.2,157.15,6.28570311]
[1727442019770,3.21550235,157.27,157.15,6.28570311]
[1727442019771,10.74,157.17,157.15,6.28570311]
[1727442019978,10.74,157.17,157.14,6.28570311]
[1727442020176,10.74,157.17,157.15,3.1808]
[1727442021277,3.1799,157.2,157.14,10.74]
[1727442021577,10.74,157.19,157.14,10.74]
[1727442021972,13.9202,157.19,157.14,10.74]
[1727442022176,10.74,157.17,157.13,4.0964]
[1727442022578,10.74,157.17,157.15,3.1807]
[1727442023278,10.74,157.18,157.16,3.1805]
[1727442023479,10.74,157.18,157.14,10.74]
[1727442023871,13.9203,157.18,157.15,3.1807]
[1727442024373,10.74,157.18,157.15,3.1807]
[1727442024770,3.22558757,157.22,157.16,3.1804]
[1727442024970,13.92,157.19,157.16,3.1804]
[1727442025170,10.74,157.19,157.15,3.1808]
[1727442026887,3.1802,157.18,157.15,3.1808]
[1727442027272,13.9202,157.18,157.15,3.1808]
[1727442028580,3.1801,157.19,157.13,4.0964]
[1727442028881,10.74,157.2,157.15,10.74]
[1727442029172,75.58,157.37,157.19,10.74]
[1727442029382,10.74,157.3,157.25,10.74]
[1727442030174,10.74,157.29,157.15,6.27397807]
[1727442030373,16.78,157.31,157.21,16.78]
[1727442030875,3.1784,157.28,157.23,3.1791]
[1727442031979,16.78,157.29,157.22,3.1793]
[1727442032175,16.78,157.29,157.19,16.78]
[1727442032978,3.1788,157.25,157.21,3.1795]
[1727442033282,16.78,157.29,157.19,16.78]
[1727442034686,16.78,157.27,157.18,16.78]
[1727442035879,16.78,157.27,157.19,16.78]
[1727442036389,20.02298355,157.29,157.19,16.78]
[1727442036584,16.78,157.29,157.19,16.78]
[1727442036886,3.1787,157.26,157.19,16.78]
[1727442037989,3.1789,157.25,157.22,3.1794]
[1727442038586,3.1789,157.25,157.21,3.1796]
[1727442039591,3.1789,157.25,157.22,3.1794]
[1727442041992,3.179,157.24,157.17,16.78]
[1727442042193,16.78,157.24,157.15,3.9305]
[1727442042692,3.1795,157.22,157.18,3.1801]
[1727442042902,16.78,157.24,157.18,3.1801]
[1727442043196,3.1796,157.21,157.18,3.1801]
[1727442043895,3.1795,157.22,157.18,3.1801]
[1727442044199,3.1795,157.22,157.19,3.18]
[1727442045198,3.1795,157.22,157.18,3.1802]
[1727442046394,3.1797,157.21,157.17,3.1804]
[1727442046698,16.78,157.19,157.11,16.78]
[1727442046894,16.78,157.19,157.1,27.04591796]
[1727442047097,16.78,157.19,157.1,20.7805]
[1727442047499,3.1804,157.17,157.1,20.7805]
[1727442047796,16.78,157.19,157.1,20.7805]
[1727442048499,16.78,157.14,157.05,19.92493065]
[1727442048699,16.78,157.14,157.06,3.9017]
[1727442049891,19.9611,157.14,157.1,3.1818]
[1727442050097,16.78,157.14,157.1,3.1818]
[1727442050298,16.78,157.14,157.06,3.9017]
[1727442050999,3.1815,157.12,157.08,3.1822]
[1727442052494,3.1817,157.11,157.07,3.1824]
[1727442052705,16.78,157.1,157.07,3.1824]
[1727442053808,3.1817,157.11,157.08,3.1822]
[1727442054796,4.0577,157.18,157.09,3.182]
[1727442054997,16.78,157.14,157.09,3.182]
[1727442055402,3.1813,157.13,157.09,3.182]
[1727442056504,3.1814,157.12,157.09,3.182]
[1727442056905,19.9614,157.12,157.09,3.182]
[1727442057099,19.9614,157.12,157.08,3.1822]
[1727442057505,16.78,157.1,157.03,1.2569]
[1727442058002,19.962,157.1,157.03,1.2569]
[1727442058196,16.78,157.1,157.03,1.2569]
[1727442058402,16.78,157.08,157.03,1.2569]
[1727442058600,16.78,157.06,157.0,1.2608]
[1727442059006,16.78,157.08,157.0,1.2608]
[1727442059209,19.9623,157.08,157.0,1.2608]
[1727442059402,16.78,157.08,157.05,3.1827]
[1727442059708,16.78,157.12,157.01,1.2564]
[1727442059914,16.78,157.14,157.05,16.78]
[1727442060206,3.1813,157.13,157.05,16.78]
[1727442060407,16.78,157.14,157.05,16.78]
[1727442060608,16.78,157.14,157.06,1.3776]
[1727442060811,16.78,157.14,157.06,2.6752]
[1727442061002,78.781,157.15,157.06,19.4552]
[1727442061206,16.78,157.16,157.06,19.4552]
[1727442061403,16.78,157.16,157.07,1.2827]
[1727442061611,4.52691703,157.19,157.08,16.78]
[1727442061612,19.96291703,157.19,157.08,16.78]
[1727442061811,16.78,157.17,157.08,16.78]
[1727442062411,3.1806,157.16,157.08,16.78]
[1727442062610,16.78,157.17,157.08,16.78]
[1727442062812,16.78,157.17,157.15,3.1808]
[1727442063113,19.9601,157.19,157.15,3.1808]
[1727442063310,16.78,157.2,157.11,16.78]
[1727442063512,19.9599,157.2,157.11,16.78]
[1727442064217,3.18,157.19,157.15,3.1807]
[1727442064813,19.9599,157.2,157.16,3.1806]
[1727442065220,16.78,157.2,157.12,1.2577]
[1727442065515,19.2908,157.24,157.15,16.78]
[1727442065815,16.78,157.24,157.15,16.78]
[1727442066615,16.78,157.24,157.19,3.1799]
[1727442066806,16.78,157.24,157.15,16.78]
[1727442067212,19.9591,157.24,157.19,3.1798]
[1727442068212,16.78,157.26,157.17,16.78]
[1727442068613,16.78,157.26,157.18,2.6282]
[1727442069021,16.78,157.24,157.18,2.6282]
[1727442069226,16.78,157.2,157.12,1.3544]
[1727442069514,16.78,157.18,157.15,3.1807]
[1727442069709,16.78,157.18,157.12,1.3544]
[1727442070114,16.78,157.2,157.12,1.3544]
[1727442070311,16.78,157.19,157.12,1.3544]
[1727442070520,16.78,157.17,157.08,2.6966]
[1727442070717,16.78,157.17,157.08,4.0287]
[1727442070917,19.9604,157.17,157.08,4.0287]
[1727442071712,19.9604,157.17,157.13,3.1811]
[1727442072315,3.1804,157.17,157.13,3.1811]
[1727442072621,16.78,157.16,157.13,3.1811]
[1727442073720,19.9603,157.18,157.14,3.181]
[1727442073916,16.78,157.18,157.09,16.78]
[1727442074520,3.1802,157.19,157.15,3.1807]
[1727442074916,19.9599,157.2,157.16,3.1806]
[1727442075122,2.6439,157.24,157.13,16.78]
[1727442075123,16.78,157.22,157.13,16.78]
[1727442075519,3.1798,157.21,157.16,3.1805]
[1727442075719,2.6439,157.24,157.11,16.78]
[1727442075720,16.78,157.2,157.11,16.78]
[1727442076424,3.16953136,157.28,157.24,3.179]
[1727442076616,16.78,157.28,157.18,16.78]
[1727442076820,20.03282547,157.28,157.18,16.78]
[1727442077019,23.21122547,157.28,157.22,3.1793]
[1727442077514,16.78,157.28,157.17,4.0086]
[1727442077725,16.78,157.25,157.17,4.0086]
[1727442078527,16.78,157.25,157.21,3.1795]
[1727442079223,16.78,157.23,157.19,3.1798]
[1727442080225,19.9594,157.23,157.18,3.1802]
[1727442080428,16.78,157.23,157.13,16.78]
[1727442081330,16.78,157.2,157.11,3.9028]
[1727442081518,16.78,157.21,157.12,16.78]
[1727442081714,19.9597,157.21,157.16,3.1805]
[1727442082323,19.9597,157.21,157.17,3.1804]
[1727442082521,20.597,157.24,157.14,16.78]
[1727442082723,19.3363,157.24,157.14,16.78]
[1727442082923,16.78,157.26,157.2,3.1797]
[1727442083423,3.1789,157.25,157.2,3.1797]
[1727442084127,3.1791,157.24,157.2,3.1797]
[1727442085622,26.87,157.27,157.15,30.07870938]
[1727442085819,3.9249,157.29,157.17,26.87]
[1727442086025,3.9249,157.29,157.18,2.6557]
[1727442086436,3.9249,157.29,157.19,1.378]
[1727442086725,3.9249,157.29,157.2,26.87]
[1727442086726,3.1781,157.29,157.2,26.87]
[1727442087735,3.1781,157.29,157.24,3.1788]
[1727442088324,4.042,157.34,157.22,26.87]
[1727442088530,2.7279,157.34,157.22,26.87]
[1727442088828,30.08986741,157.33,157.22,26.87]
[1727442089028,3.1779,157.3,157.26,3.1785]
[1727442089733,30.08986741,157.33,157.2,26.87]
[1727442090333,3.1782,157.29,157.24,3.1788]
[1727442090635,26.87,157.28,157.19,1.378]
[1727442091739,3.1789,157.25,157.21,3.1795]
[1727442092138,26.87,157.28,157.19,1.378]
[1727442092539,29.5044,157.28,157.2,3.1798]
[1727442092941,29.5044,157.28,157.19,1.378]
[1727442093338,26.87,157.26,157.18,2.6557]
[1727442093542,26.87,157.26,157.18,1.3648]
[1727442094152,3.1794,157.23,157.2,3.1798]
[1727442094840,26.87,157.26,157.16,26.87]
[1727442095242,4.4703,157.27,157.23,3.179]
[1727442095442,1.2919,157.27,157.23,3.179]
[1727442095843,3.1786,157.27,157.24,3.179]
[1727442096047,30.04904211,157.31,157.18,26.87]
[1727442096249,30.7257,157.33,157.2,26.87]
[1727442096447,3.23724769,157.32,157.21,3.9062]
[1727442096841,3.1781,157.29,157.25,3.1787]
[1727442097047,3.23724769,157.32,157.21,3.9062]
[1727442097952,30.7257,157.33,157.27,3.1784]
[1727442098257,3.8557,157.33,157.23,26.87]
[1727442098553,75.56,157.36,157.25,26.87]
[1727442098746,26.87,157.38,157.25,26.87]
[1727442099959,3.177,157.34,157.3,3.1777]
[1727442100153,26.87,157.38,157.25,26.87]
[1727442100355,4.0297,157.4,157.28,26.87]
[1727442101054,3.1766,157.36,157.32,3.1773]
[1727442103754,3.1766,157.36,157.29,4.0405]
[1727442103755,3.1766,157.36,157.33,3.1772]
[1727442103955,3.1766,157.36,157.29,4.0405]
[1727442104152,3.1768,157.35,157.31,3.1774]
[1727442104348,4.0297,157.4,157.29,4.0405]
[1727442104760,3.1766,157.36,157.32,3.1773]
[1727442105354,3.1766,157.36,157.33,3.1772]
[1727442105663,3.1768,157.35,157.29,4.0405]
[1727442105860,26.87,157.38,157.3,3.1777]
[1727442106055,26.87,157.36,157.22,30.8512]
[1727442106358,3.1774,157.32,157.22,30.8512]
[1727442106559,3.1774,157.32,157.28,3.178]
[1727442106952,3.1776,157.31,157.28,3.178]
[1727442108058,26.87,157.33,157.22,3.9812]
[1727442108255,29.99120221,157.33,157.22,3.9812]
[1727442108456,3.1781,157.29,157.25,3.1786]
[1727442109157,26.87,157.31,157.22,2.6844]
[1727442109349,26.87,157.31,157.15,6.3613]
[1727442109350,26.87,157.28,157.17,2.7357]
[1727442109553,3.179,157.25,157.2,3.1797]
[1727442109753,3.179,157.25,157.17,4.0616]
[1727442110861,3.179,157.25,157.21,3.1796]
[1727442111354,26.87,157.28,157.22,3.1794]
[1727442111560,1.2884,157.3,157.18,26.87]
[1727442111861,3.1785,157.27,157.22,3.1793]
[1727442112559,3.1783,157.28,157.23,3.1792]
[1727442112755,3.1783,157.28,157.18,26.87]
[1727442112960,3.1783,157.28,157.2,26.87]
[1727442113159,3.178,157.29,157.25,3.1787]
[1727442113361,26.87,157.33,157.2,26.87]
[1727442113659,3.1778,157.3,157.26,3.1786]
[1727442114065,30.02192645,157.33,157.2,26.87]
[1727442114254,3.1781,157.29,157.24,3.1789]
[1727442114460,30.02192645,157.33,157.24,3.1789]
[1727442114761,3.1785,157.27,157.23,3.1792]
[1727442115657,3.1785,157.27,157.2,26.87]
[1727442115858,3.1785,157.27,157.24,3.179]
[1727442116857,3.1782,157.28,157.24,3.179]
[1727442117052,30.02192645,157.33,157.25,3.1788]
[1727442117456,30.02192645,157.33,157.2,26.87]
[1727442117457,3.178,157.3,157.2,26.87]
[1727442117654,3.178,157.3,157.26,3.1786]
[1727442118970,3.1781,157.29,157.26,3.1786]
[1727442120166,3.1781,157.29,157.25,3.1787]
[1727442120366,3.1782,157.28,157.2,26.87]
[1727442120572,26.87,157.32,157.2,26.87]
[1727442120960,26.87,157.32,157.24,3.1789]
[1727442121577,3.1783,157.28,157.25,3.1787]
[1727442121768,26.87,157.32,157.2,26.87]
[1727442121969,30.7164,157.35,157.23,26.87]
[1727442122167,30.7164,157.35,157.24,3.9006]
[1727442122871,26.87,157.3,157.2,26.87]
[1727442123064,3.16996571,157.29,157.18,2.5955]
[1727442123373,3.1793,157.23,157.2,3.1797]
[1727442123575,3.17441746,157.26,157.18,2.5955]
[1727442123781,3.11495477,157.26,157.18,2.5955]
[1727442124471,26.87,157.25,157.16,1.3051]
[1727442124772,26.87,157.25,157.12,26.87]
[1727442125678,4.58874111,157.26,157.14,26.87]
[1727442126076,3.1795,157.22,157.14,26.87]
[1727442126574,28.1486,157.28,157.17,26.87]
[1727442126778,28.1486,157.28,157.18,3.8611]
[1727442126977,1.2786,157.28,157.18,3.8611]
[1727442127472,4.46918033,157.28,157.18,3.8611]
[1727442127669,3.1787,157.26,157.21,3.1796]
[1727442127872,3.1787,157.26,157.18,3.8611]
[1727442128468,3.1785,157.27,157.23,3.179]
[1727442128773,2.7254,157.32,157.19,26.87]
[1727442128973,26.87,157.29,157.18,3.8611]
[1727442129577,3.1791,157.24,157.2,3.1798]
[1727442129969,3.1796,157.21,157.18,3.8611]
[1727442130173,5.93552189,157.32,157.18,2.5718]
[1727442130174,26.87,157.26,157.18,2.5718]
[1727442130771,3.1793,157.23,157.19,3.18]
[1727442133079,26.87,157.24,157.12,26.87]
[1727442133381,3.24996319,157.23,157.12,29.5774]
[1727442133776,3.1798,157.21,157.17,3.1804]
[1727442134075,3.1798,157.21,157.12,29.5774]
[1727442134574,26.87,157.26,157.15,26.87]
[1727442134776,97.86012189,157.32,157.17,26.87]
[1727442134777,26.87,157.29,157.17,26.87]
[1727442136276,3.1792,157.23,157.19,3.1799]
[1727442138483,3.1791,157.24,157.2,3.1797]
[1727442138672,26.87,157.26,157.15,30.02813595]
[1727442138880,3.1789,157.25,157.21,3.1795]
[1727442139081,26.87,157.29,157.18,3.9518]
[1727442139283,29.4735,157.31,157.18,3.9518]
[1727442139481,29.4735,157.31,157.23,3.1791]
[1727442139482,3.1784,157.27,157.23,3.1791]
[1727442141179,3.1786,157.26,157.23,3.1791]
[1727442141582,29.4735,157.31,157.18,3.9518]
[1727442141781,26.87,157.24,157.05,231.367]
[1727442141980,26.87,157.24,157.13,1.3776]
[1727442142182,30.05459232,157.24,157.13,1.3776]
[1727442142482,26.87,157.22,157.13,1.3776]
[1727442142680,26.87,157.22,157.15,3.1807]
[1727442143082,26.87,157.22,157.13,1.3776]
[1727442143282,29.99163812,157.22,157.16,3.1805]
[1727442143684,3.1798,157.21,157.16,3.1805]
[1727442143879,29.99163812,157.22,157.15,3.1808]
[1727442144079,26.87,157.2,157.13,1.3776]
[1727442144884,3.1802,157.18,157.14,3.1809]
[1727442145496,30.0458016,157.2,157.13,1.3776]
[1727442145783,3.1758016,157.2,157.13,1.3776]
[1727442146083,26.87,157.22,157.15,3.1808]
[1727442146393,26.87,157.22,157.16,3.1805]
[1727442146684,30.11612042,157.22,157.13,1.3776]
[1727442147593,3.18,157.19,157.13,1.3776]
[1727442148089,3.18,157.2,157.16,3.1806]
[1727442148888,3.18,157.19,157.16,3.1806]
[1727442149090,30.11612042,157.22,157.16,3.1806]
[1727442149489,3.18,157.2,157.16,3.1806]
[1727442150090,3.1801,157.19,157.16,3.1806]
[1727442151691,3.1802,157.18,157.15,3.1808]
[1727442153895,16.81,157.18,157.11,2.6827]